bitfinex-derivatives/quotes_ETHF0:USTF0_20241024
["timestamp","ask_amount","ask_price","bid_price","bid_amount"]
[1729748853014,1.12925186,2553.9,2553.8,0.35274]
[1729748853506,1.12925186,2553.9,2553.8,0.47530567]
[1729748853711,44.0078,2554.3,2553.8,5.16781753]
[1729748853906,1.72105186,2554.2,2554.0,1.48196186]
[1729748854106,2.88835186,2554.2,2554.0,1.48196186]
[1729748854711,2.88835186,2554.2,2554.0,0.35271]
[1729748854906,2.88835186,2554.2,2553.9,1.72825186]
[1729748855111,1.12925186,2554.1,2554.0,0.35272]
[1729748858016,1.12925186,2554.1,2553.9,2.28855186]
[1729748858017,2.88835186,2554.2,2554.1,0.3527]
[1729748859717,1.7591,2554.2,2554.1,0.3527]
[1729748859920,4.33705186,2554.4,2554.3,0.35268]
[1729748860924,4.33705186,2554.4,2554.3,1.48193186]
[1729748861117,0.4214,2554.4,2554.3,1.48193186]
[1729748861426,5.53175186,2555.3,2555.2,0.35255]
[1729748861623,9.44535186,2555.3,2555.2,0.35255]
[1729748861928,13.89943686,2555.3,2555.2,0.35255]
[1729748862222,9.44535186,2555.3,2555.2,0.35255]
[1729748862419,13.89943686,2555.3,2555.2,0.35255]
[1729748864623,6.77803686,2555.3,2555.2,0.35255]
[1729748864927,5.648785,2555.3,2555.2,1.48180186]
[1729748865422,6.77803686,2555.3,2555.2,0.35255]
[1729748865619,5.648785,2555.3,2555.2,1.48180186]
[1729748865818,1.1947,2555.3,2555.2,1.48180186]
[1729748866124,2.32395186,2555.3,2555.2,1.48180186]
[1729748866525,2.32395186,2555.3,2555.2,0.35255]
[1729748868225,2.32395186,2555.3,2555.2,1.48180186]
[1729748874334,2.32395186,2555.3,2555.2,0.35255]
[1729748875933,1.1947,2555.3,2555.2,1.48180186]
[1729748877333,1.1947,2555.3,2555.2,1.12925186]
[1729748879126,1.1947,2555.3,2555.1,3.56036]
[1729748879127,2.32395186,2555.3,2555.1,4.68961186]
[1729748879332,0.6021,2555.2,2555.1,4.68961186]
[1729748881025,1.1947,2555.3,2555.2,0.35255]
[1729748881322,1.1947,2555.3,2555.2,1.48180186]
[1729748881524,1.1947,2555.3,2555.2,2.09820186]
[1729748881725,0.5946,2555.3,2555.2,2.09820186]
[1729748882033,0.5989,2555.5,2555.4,0.35251]
[1729748882230,0.5989,2555.5,2555.4,1.48176186]
[1729748883528,1.72815186,2555.5,2555.4,1.48176186]
[1729748884728,1.72815186,2555.5,2555.4,1.12925186]
[1729748884929,1.72815186,2555.5,2555.4,0.35252]
[1729748885132,1.72815186,2555.5,2555.3,1.48178186]
[1729748885529,1.12925186,2555.4,2555.3,0.35253]
[1729748886038,1.12925186,2555.4,2555.2,0.35255]
[1729748886039,5.04285186,2555.4,2555.2,0.35255]
[1729748886335,1.12925186,2555.3,2555.2,0.35255]
[1729748886534,1.12925186,2555.3,2555.1,5.41705186]
[1729748886737,1.166,2555.2,2555.1,5.76961186]
[1729748889139,1.166,2555.2,2555.1,2.56181186]
[1729748889438,1.166,2555.2,2555.1,5.76961186]
[1729748890236,1.166,2555.2,2555.1,4.68961186]
[1729748892738,1.166,2555.2,2555.1,4.33705186]
[1729748892936,2.29525186,2555.2,2555.1,3.2078]
[1729748893340,2.29525186,2555.2,2555.1,3.56037]
[1729748893743,2.29525186,2555.2,2555.1,3.2078]
[1729748893940,2.29525186,2555.2,2555.0,1.48183186]
[1729748894139,0.5736,2555.1,2555.0,1.48183186]
[1729748900948,5.61645186,2555.1,2554.7,3.2078]
[1729748901154,1.12925186,2554.8,2554.7,1.12925186]
[1729748901352,1.12925186,2554.9,2554.8,0.3526]
[1729748901749,5.04365186,2554.9,2554.8,0.3526]
[1729748901945,0.5736,2555.1,2554.8,1.12925186]
[1729748902147,0.5736,2555.1,2555.0,1.48183186]
[1729748903057,1.70285186,2555.1,2555.0,0.35258]
[1729748906555,2.05542186,2555.1,2554.9,0.35259]
[1729748906754,1.70285186,2555.1,2555.0,0.35258]
[1729748908351,2.05542186,2555.1,2554.9,1.12925186]
[1729748908654,2.05542186,2555.1,2554.9,1.48183186]
[1729748909156,2.05542186,2555.1,2554.9,0.35258]
[1729748909953,2.05542186,2555.1,2554.8,1.12925186]
[1729748910150,1.70285186,2555.1,2555.0,0.35258]
[1729748910551,0.5736,2555.1,2555.0,1.48183186]
[1729748912059,0.5736,2555.1,2555.0,0.35258]
[1729748912461,1.70285186,2555.1,2555.0,0.35258]
[1729748913763,2.05542186,2555.1,2555.0,0.35258]
[1729748914758,2.05542186,2555.1,2554.9,1.48184186]
[1729748916755,1.48183186,2555.0,2554.8,0.3526]
[1729748916956,5.27695638,2555.0,2554.7,1.12925186]
[1729748917156,5.62953638,2555.0,2554.8,0.3526]
[1729748917358,5.62953638,2555.0,2554.9,0.35259]
[1729748917359,5.27695638,2555.0,2554.9,0.35259]
[1729748917662,5.62953638,2555.0,2554.8,0.3526]
[1729748918156,5.27695638,2555.0,2554.8,0.35259]
[1729748918356,5.27695638,2555.0,2554.8,0.35261]
[1729748918556,5.62953638,2555.0,2554.8,0.35261]
[1729748919960,5.27695638,2555.0,2554.7,1.48186186]
[1729748920163,1.12925186,2554.9,2554.7,1.48186186]
[1729748920355,1.2186,2554.8,2554.7,1.12925186]
[1729748920560,1.7917,2554.8,2554.7,1.48187186]
[1729748920763,1.7917,2554.8,2554.7,1.12925186]
[1729748921760,1.7917,2554.8,2554.7,1.48187186]
[1729748925261,1.12925186,2555.1,2554.7,1.12925186]
[1729748925566,1.12925186,2555.1,2554.5,3.7957]
[1729748925567,4.41354775,2555.0,2554.9,1.48183186]
[1729748925962,8.32714775,2555.0,2554.9,1.48183186]
[1729748927764,4.41354775,2555.0,2554.9,1.48183186]
[1729748929267,4.41354775,2555.0,2554.5,4.67731]
[1729748929268,9.45639961,2555.0,2554.8,1.12925186]
[1729748929468,5.54279961,2555.0,2554.9,0.35259]
[1729748929874,9.45639961,2555.0,2554.9,0.35259]
[1729748932566,0.3526,2554.9,2554.5,3.7957]
[1729748932777,1.48185186,2554.9,2554.8,0.35261]
[1729748933270,1.48185186,2554.9,2554.7,0.35261]
[1729748933673,1.12925186,2554.9,2554.7,1.12925186]
[1729748933869,1.12925186,2554.9,2554.8,0.35261]
[1729748934471,1.48184186,2555.0,2554.8,0.35261]
[1729748934671,1.53747,2555.1,2554.9,0.35258]
[1729748934875,6.58032186,2555.1,2554.9,0.35258]
[1729748935071,4.45000815,2555.0,2554.9,0.35258]
[1729748935474,4.45000815,2555.0,2554.9,1.60435219]
[1729748936472,3.2078,2555.4,2554.9,5.16537219]
[1729748936665,1.48177186,2555.5,2555.2,1.48179186]
[1729748936870,1.48177186,2555.5,2555.3,0.35254]
[1729748937073,4.30058056,2555.4,2555.3,0.35254]
[1729748937277,2.66325186,2555.6,2555.4,0.35252]
[1729748937674,1.12925186,2555.5,2555.3,1.48178186]
[1729748938074,1.12925186,2555.5,2555.3,1.12925186]
[1729748938370,1.12925186,2555.5,2555.3,1.48178186]
[1729748938778,1.12925186,2555.5,2555.4,0.12249574]
[1729748938973,1.12925186,2555.5,2555.4,0.47501574]
[1729748939276,1.12925186,2555.5,2555.4,0.94372]
[1729748939481,1.12925186,2555.5,2555.4,0.5912]
[1729748939975,1.12925186,2555.5,2555.4,0.94372]
[1729748940972,1.12925186,2555.5,2555.4,1.06621482]
[1729748941275,1.12925186,2555.5,2555.4,0.5912]
[1729748941667,1.12925186,2555.5,2555.4,0.94372]
[1729748943382,1.12925186,2555.5,2555.4,0.35252]
[1729748943678,1.12925186,2555.5,2555.4,0.93192]
[1729748944281,4.4038,2555.8,2555.5,0.35251]
[1729748944282,1.12925186,2555.6,2555.5,0.35251]
[1729748944472,1.12925186,2555.6,2555.5,0.96371]
[1729748946185,1.12925186,2555.6,2555.5,0.6112]
[1729748946386,1.12925186,2555.6,2555.4,0.35252]
[1729748946683,0.35248,2555.7,2555.4,0.35252]
[1729748946684,1.12925186,2555.5,2555.4,0.35252]
[1729748949695,1.12925186,2555.5,2555.4,0.94682]
[1729748950388,1.196,2555.8,2555.6,0.35249]
[1729748950592,1.74185186,2555.7,2555.6,0.35249]
[1729748950793,5.98669862,2555.7,2555.6,0.35249]
[1729748951493,5.98669862,2555.7,2555.4,2.32385186]
[1729748951494,5.98669862,2555.7,2555.5,0.3525]
[1729748951696,1.12925186,2555.5,2555.4,2.67637186]
[1729748954093,1.12925186,2555.7,2555.4,2.32385186]
[1729748954297,1.12925186,2555.7,2555.6,1.48175186]
[1729748954490,1.12925186,2555.9,2555.8,0.35246]
[1729748954691,1.12925186,2555.9,2555.6,3.2078]
[1729748954892,1.1478,2555.8,2555.7,0.35247]
[1729748955087,2.27705186,2555.8,2555.7,0.35247]
[1729748955397,2.27705186,2555.8,2555.6,3.2078]
[1729748955601,2.05783186,2555.7,2555.3,1.12925186]
[1729748955791,1.12925186,2555.5,2555.3,1.12925186]
[1729748955989,0.5966,2555.4,2555.3,1.48179186]
[1729748956299,1.1687,2555.4,2555.3,1.48179186]
[1729748959200,0.5761,2555.7,2555.3,1.12925186]
[1729748959398,1.73995186,2555.6,2555.5,1.12925186]
[1729748959596,5.9249041,2555.6,2555.5,1.12925186]
[1729748960197,4.79565224,2555.6,2555.5,1.48176186]
[1729748961002,4.18495224,2555.6,2555.5,4.68956186]
[1729748961701,0.5761,2555.7,2555.5,4.33705186]
[1729748961908,0.5935,2555.9,2555.8,0.35247]
[1729748962102,0.5935,2555.9,2555.8,1.48172186]
[1729748964500,3.2078,2556.1,2556.0,0.35244]
[1729748964696,3.2078,2556.1,2556.0,1.48169186]
[1729748965300,1.1672,2556.3,2556.0,1.12925186]
[1729748965496,1.12925186,2556.2,2555.9,3.2078]
[1729748965705,0.5748,2556.1,2556.0,1.48169186]
[1729748971505,1.70405186,2556.1,2555.9,1.48170186]
[1729748972414,0.5763,2556.0,2555.9,1.48170186]
[1729748977713,0.5748,2556.1,2556.0,0.35244]
[1729748978008,0.5748,2556.1,2556.0,1.48169186]
[1729748981312,4.68939186,2556.8,2556.4,0.35238]
[1729748981520,0.588,2556.5,2556.4,0.35238]
[1729748982213,5.28538987,2556.7,2556.6,0.35236]
[1729748982616,3.2078,2557.1,2556.3,1.023]
[1729748982811,1.1907,2556.9,2556.5,0.35237]
[1729748983014,1.1907,2556.9,2556.8,1.48158186]
[1729748983015,5.63266659,2556.9,2556.8,1.48158186]
[1729748983206,1.1907,2556.9,2556.8,1.48158186]
[1729748983921,3.2078,2557.1,2556.9,0.35231]
[1729748984107,3.2078,2557.1,2556.9,1.48156186]
[1729748984415,5.54948947,2557.0,2556.9,1.48156186]
[1729748984620,5.54948947,2557.0,2556.9,1.12925186]
[1729748984921,4.42023761,2557.0,2556.9,1.48157186]
[1729748986018,3.2078,2557.1,2557.0,0.3523]
[1729748986324,3.2078,2557.1,2557.0,1.48155186]
[1729748986710,3.2078,2557.4,2557.0,5.39194186]
[1729748986910,4.33705186,2557.4,2557.3,1.12925186]
[1729748987218,0.5966,2557.5,2557.3,1.12925186]
[1729748987219,1.72585186,2557.5,2557.3,1.12925186]
[1729748987513,1.72585186,2557.5,2557.4,1.48150186]
[1729748987514,0.5966,2557.5,2557.4,1.48150186]
[1729748988017,0.5966,2557.5,2557.4,1.12925186]
[1729748989223,4.3565,2557.7,2557.4,1.48149186]
[1729748989426,6.09995186,2557.7,2557.6,1.12925186]
[1729748989624,4.20079607,2557.6,2557.5,1.12925186]
[1729748989942,6.09995186,2557.7,2557.5,1.12925186]
[1729748989943,10.30074793,2557.7,2557.5,1.12925186]
[1729748990223,6.09995186,2557.7,2557.5,1.48148186]
[1729748990422,4.47890098,2557.6,2557.5,1.48148186]
[1729748990813,4.47890098,2557.6,2557.5,1.12925186]
[1729748991016,5.60815284,2557.6,2557.5,1.48149186]
[1729748991213,5.60815284,2557.6,2557.5,1.12925186]
[1729748991913,4.47890098,2557.6,2557.5,1.12925186]
[1729748992924,4.47890098,2557.6,2557.5,1.48149186]
[1729748993109,4.47890098,2557.6,2557.5,1.12925186]
[1729748993619,4.47890098,2557.6,2557.5,1.48149186]
[1729748993821,4.47890098,2557.6,2557.5,2.07049186]
[1729748994619,4.47890098,2557.6,2557.5,2.67699186]
[1729748996324,4.47890098,2557.6,2557.5,3.28639186]
[1729748996726,4.47890098,2557.6,2557.5,2.67699186]
[1729748997023,4.47890098,2557.6,2557.5,2.07049186]
[1729748999528,4.47890098,2557.6,2557.5,0.94124]
[1729748999828,4.47890098,2557.6,2557.5,1.48149186]
[1729749010221,4.47890098,2557.6,2557.5,2.06389186]
[1729749010418,3.89149592,2557.6,2557.5,2.06389186]
[1729749010825,3.89149592,2557.6,2557.5,1.48149186]
[1729749011624,3.89149592,2557.6,2557.5,0.35224]
[1729749011927,3.89149592,2557.6,2557.5,1.12925186]
[1729749012323,3.89149592,2557.6,2557.5,1.48149186]
[1729749012524,3.89149592,2557.6,2557.5,1.12925186]
[1729749012721,4.47339592,2557.6,2557.5,1.48149186]
[1729749014532,4.47339592,2557.6,2557.5,4.68929186]
[1729749016133,3.89149592,2557.6,2557.5,5.81854372]
[1729749016430,1.2005,2557.7,2557.5,5.81854372]
[1729749016431,1.2005,2557.7,2557.6,0.35222]
[1729749016634,1.2005,2557.7,2557.6,5.39107186]
[1729749016833,0.6174,2557.8,2557.6,5.03885186]
[1729749017025,1.1868,2558.2,2558.1,0.35215]
[1729749017226,1.1868,2558.2,2558.1,1.48140186]
[1729749017924,0.6174,2558.5,2558.4,0.35211]
[1729749018129,0.6174,2558.5,2558.4,1.48136186]
[1729749018932,0.6174,2558.5,2558.4,4.68916186]
[1729749019427,0.6174,2558.5,2558.4,5.81841372]
[1729749019626,0.6174,2558.5,2558.4,4.68916186]
[1729749019830,1.1577,2558.7,2558.5,0.35209]
[1729749020035,1.1577,2558.7,2558.6,1.12925186]
[1729749020435,5.56076174,2558.7,2558.6,1.12925186]
[1729749020937,5.56076174,2558.7,2558.4,3.2078]
[1729749021236,5.56076174,2558.7,2558.6,1.12925186]
[1729749025532,10.5980136,2558.7,2558.1,3.2078]
[1729749025834,1.48139186,2558.2,2558.0,1.12925186]
[1729749026137,4.85573302,2558.1,2558.0,1.12925186]
[1729749028440,4.85573302,2558.1,2557.9,0.35218]
[1729749028634,4.85573302,2558.1,2558.0,0.35217]
[1729749028835,0.5883,2558.1,2558.0,2.79571354]
[1729749029137,1.1972,2558.5,2558.0,6.35314354]
[1729749029337,1.1972,2558.5,2557.9,0.6176]
[1729749029338,0.6202,2558.4,2558.3,3.55993]
[1729749029741,1.1972,2558.9,2558.4,0.35211]
[1729749029943,1.1972,2558.9,2558.6,0.35208]
[1729749030135,5.39268152,2558.9,2558.6,0.35208]
[1729749030537,5.39268152,2558.9,2558.7,0.35206]
[1729749030737,5.39268152,2558.9,2558.6,2.44354354]
[1729749031054,5.39268152,2558.9,2558.6,2.79562354]
[1729749031242,0.5895,2558.8,2558.6,2.79562354]
[1729749031753,4.50254779,2558.7,2558.6,2.79562354]
[1729749034036,4.50254779,2558.7,2558.6,5.65134354]
[1729749034243,4.50254779,2558.7,2558.6,3.2078]
[1729749034642,4.50254779,2558.7,2558.6,3.55988]
[1729749035748,4.50254779,2558.7,2558.6,3.2078]
[1729749035952,4.50254779,2558.7,2558.6,3.55988]
[1729749036552,4.50254779,2558.7,2558.6,3.2078]
[1729749036738,4.99188307,2558.7,2558.6,3.55988]
[1729749037747,0.48933528,2558.7,2558.6,6.00342354]
[1729749040645,0.48933528,2558.7,2558.6,9.91142354]
[1729749041442,1.1845,2559.2,2559.0,0.35202]
[1729749041646,0.585,2559.1,2559.0,0.35202]
[1729749041950,4.67477394,2559.1,2558.9,2.79557354]
[1729749042247,0.6013,2559.2,2559.0,0.35203]
[1729749042548,0.6013,2559.2,2559.1,2.79556354]
[1729749042953,0.585,2559.3,2559.1,2.44354354]
[1729749043156,0.585,2559.3,2559.2,0.352]
[1729749043347,0.585,2559.3,2559.1,2.44354354]
[1729749043845,0.585,2559.3,2559.1,2.79555354]
[1729749044246,0.585,2559.3,2559.1,2.44354354]
[1729749044844,8.2733938,2559.2,2558.4,3.2078]
[1729749045047,0.35206,2558.8,2558.4,3.2078]
[1729749045252,1.841,2558.7,2558.4,3.2078]
[1729749045454,5.9341969,2558.7,2558.3,0.35212]
[1729749045647,5.9341969,2558.7,2558.3,0.35211]
[1729749045850,5.9341969,2558.7,2558.4,3.55991]
[1729749046152,5.9341969,2558.7,2558.5,0.35209]
[1729749046556,5.3128969,2558.7,2558.4,3.55991]
[1729749046758,5.3128969,2558.7,2558.5,0.3521]
[1729749047556,5.3128969,2558.7,2558.6,2.79562354]
[1729749047855,1.2197,2558.7,2558.6,2.79562354]
[1729749048062,1.2197,2558.7,2558.6,2.44354354]
[1729749048759,1.2197,2558.7,2558.6,2.79562354]
[1729749049357,0.6006,2558.7,2558.6,2.79562354]
[1729749050359,1.2304,2559.0,2558.7,0.35206]
[1729749050555,0.6061,2558.9,2558.8,0.35206]
[1729749051055,40.8,2559.3,2558.7,3.2078]
[1729749051357,4.93236355,2559.2,2558.9,0.35204]
[1729749051961,4.93236355,2559.2,2558.8,2.44354354]
[1729749051962,4.93236355,2559.2,2559.1,0.35202]
[1729749052159,0.5914,2559.2,2559.1,0.35202]
[1729749052662,0.5914,2559.2,2559.0,6.00336354]
[1729749052956,0.5914,2559.2,2559.0,5.65134354]
[1729749053362,0.5914,2559.2,2559.0,6.00336354]
[1729749053564,0.5914,2559.2,2559.0,5.65134354]
[1729749053853,0.5914,2559.2,2559.0,6.00336354]
[1729749054467,0.5914,2559.2,2559.0,5.65134354]
[1729749054657,0.5887,2559.1,2559.0,6.00337354]
[1729749055561,0.5914,2559.2,2559.1,0.35202]
[1729749055762,0.5914,2559.2,2559.0,5.65134354]
[1729749056070,0.5914,2559.2,2559.1,0.35202]
[1729749057366,0.5941,2559.5,2559.4,0.35197]
[1729749057665,0.5941,2559.5,2559.4,2.79551354]
[1729749058162,0.6217,2559.6,2559.4,2.44354354]
[1729749058363,0.6217,2559.6,2559.5,0.35196]
[1729749059157,0.6217,2559.6,2559.4,3.05754354]
[1729749059158,0.5829,2560.0,2559.7,0.35192]
[1729749059366,0.6217,2559.9,2559.8,0.35192]
[1729749059559,0.6217,2559.9,2559.6,5.65134354]
[1729749059560,4.95480709,2559.9,2559.6,6.00328354]
[1729749059762,4.95480709,2559.9,2559.7,0.35193]
[1729749059958,4.95480709,2559.9,2559.6,5.65134354]
[1729749060157,2.44354354,2560.6,2559.8,2.44354354]
[1729749060467,2.44354354,2560.6,2559.6,6.00328354]
[1729749060468,0.5857,2559.8,2559.6,6.00328354]
[1729749060663,0.5857,2559.8,2559.7,1.01]
[1729749060860,0.5857,2559.8,2559.7,0.35193]
[1729749062072,0.5857,2559.8,2559.6,4.56973]
[1729749062463,0.5857,2559.8,2559.7,0.35193]
[1729749062965,0.5857,2559.8,2559.4,0.35197]
[1729749062966,4.4921,2559.8,2559.4,0.35197]
[1729749063268,5.08496063,2559.8,2559.3,2.44354354]
[1729749063471,4.73304063,2559.8,2559.3,3.80553354]
[1729749063672,4.73304063,2559.8,2559.3,3.45354354]
[1729749064267,4.73304063,2559.8,2559.4,0.35197]
[1729749064565,4.73304063,2559.8,2559.3,3.45354354]
[1729749064768,4.73304063,2559.8,2559.4,0.35197]
[1729749064979,4.73304063,2559.8,2559.5,0.35196]
[1729749065164,4.73304063,2559.8,2559.3,3.45354354]
[1729749065571,4.73304063,2559.8,2559.5,0.35195]
[1729749066166,4.73304063,2559.8,2559.3,3.45354354]
[1729749066370,4.73304063,2559.8,2559.3,2.79552354]
[1729749066564,4.73304063,2559.8,2559.3,3.80552354]
[1729749066975,4.73304063,2559.8,2559.4,0.35197]
[1729749068665,4.73304063,2559.8,2559.3,3.45354354]
[1729749068972,4.73304063,2559.8,2559.4,0.35197]
[1729749069467,4.73304063,2559.8,2559.5,3.55975]
[1729749069971,0.5857,2559.8,2559.7,0.35193]
[1729749070670,0.6258,2560.0,2559.6,0.5814]
[1729749071164,0.35197,2559.4,2559.0,1.01755939]
[1729749071364,0.97199,2559.3,2558.5,4.2728]
[1729749071571,0.35203,2559.0,2558.5,4.2728]
[1729749071769,40.8,2559.0,2558.5,4.62489]
[1729749071975,0.35201,2559.2,2558.5,3.55989]
[1729749072171,0.35201,2559.2,2558.6,1.41708]
[1729749072366,4.06947968,2559.1,2558.6,1.065]
[1729749072674,4.06947968,2559.1,2558.6,1.41707]
[1729749072876,4.06947968,2559.1,2558.6,1.065]
[1729749073170,4.06947968,2559.1,2558.6,2.44354354]
[1729749073377,4.06947968,2559.1,2558.6,3.50854354]
[1729749073566,4.06947968,2559.1,2558.7,0.35206]
[1729749073770,4.49640147,2559.2,2558.7,0.35206]
[1729749073969,41.772,2559.3,2558.7,0.35206]
[1729749074174,0.62,2559.3,2558.6,3.50854354]
[1729749074482,5.63780147,2559.2,2558.7,0.12232513]
[1729749074775,5.63780147,2559.2,2558.7,0.35206]
[1729749075075,5.63780147,2559.2,2558.6,3.50854354]
[1729749075284,5.63780147,2559.2,2558.7,0.12232547]
[1729749075577,5.63780147,2559.2,2558.6,3.86062354]
[1729749075778,8.84560147,2559.2,2558.7,0.12232555]
[1729749075974,8.84560147,2559.2,2558.6,6.71634354]
[1729749076277,8.84560147,2559.2,2558.7,0.47438535]
[1729749076483,8.84560147,2559.2,2558.7,0.35206]
[1729749076670,8.84560147,2559.2,2558.6,4.2728]
[1729749076671,9.19761147,2559.2,2558.6,4.62488]
[1729749076974,8.84560147,2559.2,2558.6,4.62488]
[1729749077772,8.84560147,2559.2,2558.6,4.2728]
[1729749077972,9.19761147,2559.2,2558.6,4.62488]
[1729749078370,8.84560147,2559.2,2558.6,4.2728]
[1729749078581,8.84560147,2559.2,2558.7,0.35207]
[1729749078781,8.84560147,2559.2,2558.6,4.2728]
[1729749078983,8.84560147,2559.2,2558.8,0.35205]
[1729749079574,8.84560147,2559.2,2558.6,6.71634354]
[1729749079867,3.2078,2559.2,2559.1,0.35202]
[1729749080080,0.62,2559.3,2558.9,3.2078]
[1729749080285,0.62,2559.3,2559.2,0.352]
[1729749080491,0.62,2559.3,2559.2,3.5598]
[1729749080792,1.1792,2559.6,2559.4,0.35197]
[1729749080992,0.579,2559.5,2559.4,0.35197]
[1729749081689,3.2078,2559.9,2559.4,0.35197]
[1729749081690,3.2078,2559.9,2559.6,0.35194]
[1729749081893,0.6105,2559.8,2559.6,0.35194]
[1729749082590,0.6105,2559.8,2559.7,0.35193]
[1729749083592,0.6105,2559.8,2559.7,0.47420582]
[1729749084194,0.6105,2559.8,2559.7,0.35193]
[1729749084399,0.6105,2559.8,2559.7,0.4742065]
[1729749084590,0.6105,2559.8,2559.7,0.1222765]
[1729749084789,0.6105,2559.8,2559.7,0.35193]
[1729749086701,0.6105,2559.8,2559.5,4.17805]
[1729749086900,0.6105,2559.8,2559.6,1.065]
[1729749087205,0.5805,2559.7,2559.5,3.55975]
[1729749087496,4.65777228,2559.7,2559.5,3.2078]
[1729749087698,5.23467228,2559.7,2559.5,3.2078]
[1729749088798,3.9072,2559.6,2559.5,3.2078]
[1729749089094,8.32515423,2559.6,2559.5,3.2078]
[1729749090898,8.32515423,2559.6,2559.4,3.2078]
[1729749091198,4.41795423,2559.6,2559.4,3.2078]
[1729749091596,4.41795423,2559.6,2559.3,0.35199]
[1729749091995,4.41795423,2559.6,2559.4,3.2078]
[1729749093899,4.41795423,2559.6,2559.3,0.35199]
[1729749094098,4.41795423,2559.6,2559.4,3.2078]
[1729749094900,4.41795423,2559.6,2559.3,0.35199]
[1729749095295,4.41795423,2559.6,2559.4,3.2078]
[1729749096896,4.76991423,2559.6,2559.2,1.065]
[1729749097301,4.41795423,2559.6,2559.2,1.065]
[1729749097894,4.41795423,2559.6,2559.2,1.417]
[1729749098095,4.76990423,2559.6,2559.2,1.065]
[1729749098599,4.41795423,2559.6,2559.2,1.065]
[1729749098796,4.41795423,2559.6,2559.2,1.417]
[1729749100603,4.41795423,2559.6,2559.2,1.065]
[1729749100899,4.41795423,2559.6,2559.5,0.35196]
[1729749101204,0.6105,2559.8,2559.6,0.35195]
[1729749101404,0.6105,2559.8,2559.7,0.576]
[1729749101704,5.1321016,2559.8,2559.7,0.92793]
[1729749102407,5.1321016,2559.8,2559.7,0.576]
[1729749105807,5.1321016,2559.8,2559.4,3.2078]
[1729749106311,5.4840216,2559.8,2559.4,3.55977]
[1729749106510,5.4840316,2559.8,2559.4,3.55977]
[1729749108209,5.1321016,2559.8,2559.4,3.55977]
[1729749108406,0.35193,2559.7,2559.4,3.55977]
[1729749108705,0.35196,2559.5,2559.1,0.35201]
[1729749108912,1.1759,2559.4,2559.1,0.35201]
[1729749109112,0.5942,2559.3,2559.1,0.35201]
[1729749111612,0.5942,2559.3,2558.9,1.084]
[1729749111814,0.5942,2559.3,2559.1,0.35201]
[1729749112014,0.5942,2559.3,2559.0,0.35202]
[1729749113615,0.5942,2559.3,2558.9,1.084]
[1729749113911,0.5942,2559.3,2558.8,4.44]
[1729749113912,2.44354354,2559.0,2558.8,3.2078]
[1729749114114,0.94524,2558.9,2558.8,3.2078]
[1729749114315,5.88308497,2558.9,2558.8,3.2078]
[1729749115518,9.43904497,2558.9,2558.0,1.01755939]
[1729749115716,9.43904497,2558.9,2557.9,0.5779]
[1729749115717,2.44354354,2558.2,2557.9,0.5779]
[1729749115915,2.44354354,2558.2,2558.0,0.35216]
[1729749116119,4.27933496,2558.1,2558.0,0.35216]
[1729749116317,4.27933496,2558.1,2557.9,0.5779]
[1729749116511,4.27933496,2558.1,2557.9,0.93007]
[1729749116718,4.27933496,2558.1,2557.9,0.5779]
[1729749120712,4.27933496,2558.1,2557.4,3.2078]
[1729749120915,2.44354354,2557.7,2557.4,0.5739]
[1729749121132,0.5796,2557.6,2557.4,0.5739]
[1729749124722,0.5796,2557.6,2557.0,3.2078]
[1729749125028,0.5796,2557.6,2557.0,0.5251]
[1729749125029,3.7874,2557.6,2557.0,0.5251]
[1729749125226,2.44354354,2557.4,2557.0,0.5251]
[1729749125829,2.44354354,2557.4,2557.0,0.8774]
[1729749126027,2.44354354,2557.4,2557.0,0.5251]
[1729749128031,3.02314354,2557.6,2557.1,0.35228]
[1729749128329,3.02314354,2557.6,2557.0,3.7329]
[1729749128528,3.02314354,2557.6,2557.3,0.35226]
[1729749129031,3.02314354,2557.6,2557.4,0.5606]
[1729749129330,3.02314354,2557.6,2557.5,0.5766]
[1729749137634,3.02314354,2557.6,2557.5,0.92884]
[1729749139127,3.02314354,2557.6,2557.5,0.5766]
[1729749139326,3.02314354,2557.6,2557.5,0.92884]
[1729749139728,3.02314354,2557.6,2557.5,0.5766]
[1729749142344,3.02314354,2557.6,2557.5,0.92884]
[1729749142642,3.02314354,2557.6,2557.5,0.5766]
[1729749148231,3.2078,2558.1,2557.5,4.4862]
[1729749148439,0.35217,2558.0,2557.6,0.35221]
[1729749148741,4.68564577,2558.0,2557.6,0.35221]
[1729749149542,2.44354354,2558.5,2557.6,4.3618]
[1729749149735,0.581,2558.4,2558.2,0.35213]
[1729749150044,0.581,2558.4,2558.3,0.5841]
[1729749150438,5.15379552,2558.4,2558.3,0.5841]
[1729749150645,0.35213,2558.3,2557.9,0.35217]
[1729749150841,2.44354354,2558.2,2557.9,0.35217]
[1729749151149,6.81544929,2558.2,2557.9,0.35217]
[1729749152447,0.5489,2558.1,2557.9,0.35217]
[1729749153038,0.5489,2558.1,2557.8,3.7919]
[1729749153846,0.5489,2558.1,2557.8,0.5841]
[1729749156142,0.5489,2558.1,2557.8,0.93629]
[1729749158447,0.5489,2558.1,2557.9,0.35217]
[1729749160343,1.12772257,2558.0,2557.9,0.35217]
[1729749163152,0.569,2558.3,2558.0,0.35216]
[1729749163353,1.12772257,2558.1,2558.0,0.35216]
[1729749163754,1.12772257,2558.1,2557.8,2.06401257]
[1729749164053,1.12772257,2558.0,2557.8,0.93629]
[1729749164350,1.12772257,2558.0,2557.9,0.35218]
[1729749173450,1.12772257,2558.0,2557.9,0.47454146]
[1729749174555,1.12772257,2558.0,2557.9,0.47454133]
[1729749175057,1.12772257,2558.0,2557.9,0.12236133]
[1729749175260,1.12772257,2558.0,2557.9,0.35218]
[1729749177554,1.12772257,2558.0,2557.9,0.474544]
[1729749178269,1.12772257,2558.0,2557.9,0.122364]
[1729749178766,1.12772257,2558.0,2557.9,0.474544]
[1729749180455,1.12772257,2558.0,2557.9,0.122364]
[1729749180861,1.12772257,2558.0,2557.8,5.27181257]
[1729749181166,0.35214,2558.2,2557.9,0.12236491]
[1729749181364,0.5783,2558.3,2557.8,3.7919]
[1729749181365,1.12772257,2558.0,2557.8,3.7919]
[1729749181565,1.12772257,2558.0,2557.9,0.12236676]
[1729749183868,1.12772257,2558.0,2557.8,4.14408]